fUST/lending_fUST_20240331
["ID","MTS","AMOUNT","RATE_DAILY","PERIOD"]
[321048533,1711823444454,-500.0,0.00039544,4]
[321048534,1711823444463,-500.0,0.00039544,4]
[321048535,1711823444472,-500.0,0.00039544,4]
[321048536,1711823444481,-655.18,0.00039544,4]
[321048537,1711823444490,-500.0,0.00039544,4]
[321048538,1711823444498,-500.0,0.00039544,4]
[321048539,1711823444508,-554.31,0.00039544,4]
[321048540,1711823444518,-500.0,0.00039544,4]
[321048541,1711823444527,-500.0,0.00039544,4]
[321048542,1711823444537,-500.0,0.00039544,4]
[321048543,1711823444546,-500.0,0.00039544,4]
[321048544,1711823444555,-500.0,0.00039544,4]
[321048545,1711823444566,-500.0,0.00039544,4]
[321048546,1711823444577,-539.4,0.00039544,4]
[321048547,1711823444587,-500.0,0.00039544,4]
[321048548,1711823444598,-500.0,0.00039544,4]
[321048549,1711823444607,-500.0,0.00039544,4]
[321048550,1711823444618,-500.2,0.00039544,4]
[321048551,1711823444627,-500.0,0.00039544,4]
[321048552,1711823444636,-151.0,0.00039544,2]
[321048553,1711823444645,-166.599376,0.00039544,2]
[321048554,1711823444654,-708.02,0.00039544,4]
[321048555,1711823444664,-500.0,0.00039544,4]
[321048556,1711823444673,-500.0,0.00039544,4]
[321048557,1711823444683,-464.78366049,0.00039544,4]
[321048558,1711823444693,-500.0,0.00039544,4]
[321048559,1711823444703,-500.0,0.00039544,4]
[321048560,1711823444713,-500.0,0.00039544,4]
[321048561,1711823444724,-500.0,0.00039544,4]
[321048562,1711823444733,-635.36,0.00039544,4]
[321048563,1711823444744,-500.0,0.00039544,4]
[321048564,1711823444754,-500.0,0.00039544,4]
[321048565,1711823444764,-500.0,0.00039544,4]
[321048566,1711823444774,-2523.52,0.00039544,4]
[321048567,1711823444783,-500.0,0.00039544,4]
[321048568,1711823444794,-439.54184418,0.00039544,4]
[321048569,1711823444804,-500.0,0.00039544,4]
[321048570,1711823444814,-627.05731118,0.00039544,4]
[321048571,1711823444823,-500.0,0.00039544,4]
[321048572,1711823444834,-500.0,0.00039544,4]
[321048573,1711823444843,-500.0,0.00039544,4]
[321048574,1711823444853,-500.0,0.00039544,4]
[321048575,1711823444862,-500.0,0.00039544,4]
[321048576,1711823444871,-500.0,0.00039544,4]
[321048577,1711823444880,-500.0,0.00039544,4]
[321048578,1711823444889,-500.0,0.00039544,4]
[321048579,1711823444899,-500.0,0.00039544,4]
[321048580,1711823444908,-500.0,0.00039544,4]
[321048581,1711823444917,-515.93,0.00039544,4]
[321048582,1711823444926,-500.0,0.00039544,4]
[321048583,1711823444935,-500.0,0.00039544,4]
[321048584,1711823444943,-876.09,0.00039544,4]
[321048585,1711823444954,-503.68648156,0.00039544,4]
[321048586,1711823444963,-318.57752913,0.00039544,4]
[321048587,1711823444973,-1923.69,0.00039544,2]
[321048588,1711823444983,-500.0,0.00039544,4]
[321048589,1711823444992,-622.30524806,0.00039544,4]
[321048590,1711823445001,-2136.15,0.00039544,4]
[321048591,1711823445011,-500.0,0.00039544,4]
[321048592,1711823445020,-500.0,0.00039544,4]
[321048593,1711823445030,-500.0,0.00039544,4]
[321048594,1711823445039,-500.0,0.00039544,4]
[321048595,1711823445048,-238.31422875,0.00039544,4]
[321048596,1711823445057,-500.0,0.00039544,4]
[321048597,1711823445066,-500.0,0.00039544,4]
[321048598,1711823445076,-4232.65,0.00039544,4]
[321048599,1711823445086,-500.0,0.00039544,4]
[321048600,1711823445096,-500.0,0.00039544,4]
[321048601,1711823445106,-500.0,0.00039544,4]
[321048602,1711823445115,-500.0,0.00039544,4]
[321048603,1711823445124,-500.0,0.00039544,4]
[321048604,1711823445135,-500.0,0.00039544,4]
[321048605,1711823445144,-1109.77,0.00039544,4]
[321048606,1711823445153,-500.0,0.00039544,4]
[321048607,1711823445163,-500.0,0.00039544,4]
[321048608,1711823445174,-500.0,0.00039544,4]
[321048609,1711823445183,-7923.61,0.00039544,4]
[321048610,1711823445193,-500.0,0.00039544,4]
[321048611,1711823445202,-500.0,0.00039544,4]
[321048612,1711823445211,-721.65,0.00039544,4]
[321048613,1711823445221,-500.0,0.00039544,4]
[321048614,1711823445230,-2364.08,0.00039544,4]
[321048615,1711823445239,-500.0,0.00039544,4]
[321048616,1711823445248,-782.22,0.00039544,4]
[321048617,1711823445258,-500.0,0.00039544,4]
[321048618,1711823445269,-500.0,0.00039544,4]
[321048619,1711823445278,-2444.09,0.00039544,4]
[321048620,1711823445288,-500.0,0.00039544,4]
[321048621,1711823445297,-500.0,0.00039544,4]
[321048622,1711823445306,-417.82621168,0.00039544,4]
[321048623,1711823445315,-879.99,0.00039544,4]
[321048624,1711823445324,-500.0,0.00039544,4]
[321048625,1711823445333,-500.0,0.00039544,4]
[321048626,1711823445342,-500.0,0.00039544,4]
[321048627,1711823445351,-500.0,0.00039544,4]
[321048628,1711823445360,-500.0,0.00039544,4]
[321048629,1711823445369,-551.35765773,0.00039544,4]
[321048630,1711823445378,-500.0,0.00039544,4]
[321048631,1711823445387,-4026.92,0.00039544,4]
[321048632,1711823445397,-500.0,0.00039544,4]
[321048633,1711823445406,-29387.0,0.00039544,4]
[321048634,1711823445415,-721.06,0.00039544,4]
[321048635,1711823445424,-500.0,0.00039544,4]
[321048636,1711823445433,-385.99770771,0.00039544,4]
[321048637,1711823445443,-500.0,0.00039544,4]
[321048638,1711823445452,-500.0,0.00039544,4]
[321048639,1711823445461,-500.0,0.00039544,4]
[321048640,1711823445470,-500.0,0.00039544,4]
[321048641,1711823445479,-7298.15,0.00039544,4]
[321048642,1711823445488,-500.0,0.00039544,4]
[321048643,1711823445497,-511.88460337,0.00039544,4]
[321048644,1711823445506,-500.0,0.00039544,4]
[321048645,1711823445517,-500.0,0.00039544,4]
[321048646,1711823445526,-500.0,0.00039544,4]
[321048647,1711823445536,-502.26231451,0.00039544,4]
[321048648,1711823445545,-489.1725812,0.00039544,4]
[321048649,1711823445555,-500.0,0.00039544,4]
[321048650,1711823445565,-500.0,0.00039544,4]
[321048651,1711823445576,-500.0,0.00039544,4]
[321048652,1711823445586,-500.0,0.00039544,4]
[321048653,1711823445596,-500.0,0.00039544,4]
[321048654,1711823445605,-475.19312669,0.00039544,4]
[321048655,1711823445615,-1136.14,0.00039544,4]
[321048656,1711823445626,-1325.62,0.00039544,4]
[321048657,1711823445636,-500.0,0.00039544,4]
[321048658,1711823445645,-500.0,0.00039544,4]
[321048659,1711823445654,-500.0,0.00039544,4]
[321048660,1711823445664,-500.0,0.00039544,4]
[321048661,1711823445674,-500.0,0.00039544,4]
[321048662,1711823445684,-500.0,0.00039544,4]
[321048663,1711823445694,-500.0,0.00039544,4]
[321048664,1711823445703,-500.0,0.00039544,4]
[321048665,1711823445774,-500.0,0.00039544,4]
[321048666,1711823445783,-500.0,0.00039544,4]
[321048667,1711823445793,-500.0,0.00039544,4]
[321048668,1711823445804,-6289.49,0.00039544,4]
[321048669,1711823445814,-500.0,0.00039544,4]
[321048670,1711823445824,-500.0,0.00039544,4]
[321048671,1711823445833,-500.0,0.00039544,4]
[321048672,1711823445842,-500.0,0.00039544,4]
[321048673,1711823445852,-500.0,0.00039544,4]
[321048674,1711823445862,-500.0,0.00039544,4]
[321048675,1711823445871,-500.0,0.00039544,4]
[321048676,1711823445880,-501.79253438,0.00039544,4]
[321048677,1711823445889,-500.0,0.00039544,4]
[321048678,1711823445899,-500.0,0.00039544,4]
[321048679,1711823445908,-2110.34,0.00039544,4]
[321048680,1711823445918,-500.0,0.00039544,30]
[321048681,1711823445927,-500.0,0.00039544,4]
[321048682,1711823445937,-500.0,0.00039544,4]
[321048683,1711823445946,-500.0,0.00039544,4]
[321048684,1711823445956,-500.0,0.00039544,4]
[321048685,1711823445966,-578.01,0.00039544,4]
[321048686,1711823445975,-502.24808086,0.00039544,4]
[321048687,1711823445985,-500.0,0.00039544,4]
[321048688,1711823445995,-500.0,0.00039544,4]
[321048689,1711823446004,-500.0,0.00039544,4]
[321048690,1711823446013,-500.0,0.00039544,4]
[321048691,1711823446023,-151.0,0.00039544,2]
[321048692,1711823446033,-151.0,0.00039544,2]
[321048693,1711823446042,-151.0,0.00039544,2]
[321048694,1711823446051,-500.0,0.00039544,4]
[321048695,1711823446060,-151.0,0.00039544,2]
[321048696,1711823446069,-151.0,0.00039544,2]
[321048697,1711823446078,-151.0,0.00039544,2]
[321048698,1711823446090,-151.0,0.00039544,2]
[321048699,1711823446102,-263.909857,0.00039544,2]
[321048700,1711823446112,-500.0,0.00039544,4]
[321048701,1711823446122,-500.0,0.00039544,4]
[321048702,1711823446131,-204367.59537936,0.00039545,3]
[321048703,1711823446142,-155.0,0.00039545,2]
[321048704,1711823446151,-500.0,0.00039545,4]
[321048706,1711823446160,-500.0,0.00039545,4]
[321048708,1711823446172,-500.0,0.00039545,4]
[321048709,1711823446181,-555.91923718,0.00039545,4]
[321048710,1711823446190,-2298.6,0.00039545,4]
[321048711,1711823446199,-500.0,0.00039545,4]
[321048712,1711823446208,-500.0,0.00039545,4]
[321048714,1711823446218,-504.60351417,0.00039545,4]
[321048715,1711823446227,-500.0,0.00039545,4]
[321048716,1711823446236,-500.0,0.00039545,4]
[321048717,1711823446245,-506.54261794,0.00039545,4]
[321048718,1711823446254,-500.0,0.00039545,4]
[321048719,1711823446263,-523.83750066,0.00039545,4]
[321048721,1711823446272,-500.0,0.00039545,4]
[321048722,1711823446281,-500.0,0.00039545,4]
[321048723,1711823446290,-500.0,0.00039545,4]
[321048724,1711823446299,-500.0,0.00039545,4]
[321048725,1711823446309,-500.0,0.00039545,4]
[321048726,1711823446319,-565.06,0.00039545,4]
[321048728,1711823446329,-500.0,0.00039545,4]
[321048730,1711823446339,-500.0,0.00039545,4]
[321048732,1711823446348,-1224.28,0.00039545,7]
[321048734,1711823446358,-1636.41,0.00039545,4]
[321048736,1711823446367,-712.7,0.00039545,4]
[321048738,1711823446376,-1062.32,0.00039545,4]
[321048739,1711823446385,-1073.8,0.00039545,4]
[321048740,1711823446394,-500.0,0.00039545,4]
[321048741,1711823446404,-500.0,0.00039545,4]
[321048742,1711823446413,-500.0,0.00039545,4]
[321048744,1711823446423,-500.0,0.00039545,4]
[321048746,1711823446432,-500.0,0.00039545,4]
[321048748,1711823446442,-500.0,0.00039545,4]
[321048750,1711823446451,-500.0,0.00039545,4]
[321048752,1711823446461,-500.0,0.00039545,4]
[321048754,1711823446470,-564.08,0.00039545,4]
[321048756,1711823446479,-500.0,0.00039545,4]
[321048758,1711823446489,-38224.22,0.00039545,4]
[321048760,1711823446498,-491.972509,0.00039545,4]
[321048762,1711823446507,-500.0,0.00039545,4]
[321048764,1711823446517,-541.32,0.00039545,4]
[321048766,1711823446526,-500.0,0.00039545,4]
[321048768,1711823446535,-753.21,0.00039545,4]
[321048770,1711823446544,-500.0,0.00039545,4]
[321048772,1711823446554,-376.94320435,0.00039546,4]
[321048774,1711823446563,-500.0,0.00039546,4]
[321048776,1711823446572,-500.0,0.00039546,4]
[321048778,1711823446582,-500.0,0.00039546,4]
[321048780,1711823446591,-500.0,0.00039546,4]
[321048782,1711823446601,-500.0,0.00039546,4]
[321048784,1711823446610,-153.2380415,0.00039546,4]
[321048786,1711823446619,-306.81355037,0.00039546,4]
[321048788,1711823446628,-541.59,0.00039546,4]
[321048790,1711823446637,-572.40695175,0.00039546,4]
[321048792,1711823446647,-500.0,0.00039546,4]
[321048794,1711823446656,-607.63815677,0.00039546,4]
[321048796,1711823446666,-500.0,0.00039546,4]
[321048798,1711823446676,-500.0,0.00039546,4]
[321048800,1711823446685,-500.0,0.00039546,4]
[321048802,1711823446695,-500.0,0.00039546,4]
[321048804,1711823446705,-500.0,0.00039546,4]
[321048806,1711823446714,-500.0,0.00039546,4]
[321048808,1711823446723,-500.0,0.00039546,4]
[321048810,1711823446733,-500.0,0.00039546,4]
[321048812,1711823446742,-523.9,0.00039546,4]
[321048814,1711823446753,-502.06543926,0.00039546,4]
[321048816,1711823446762,-500.0,0.00039546,4]
[321048818,1711823446771,-500.0,0.00039546,4]
[321048820,1711823446780,-500.0,0.00039546,4]
[321048822,1711823446790,-500.0,0.00039546,4]
[321048824,1711823446799,-500.0,0.00039546,4]
[321048826,1711823446808,-527.24,0.00039546,4]
[321048828,1711823446817,-502.64774885,0.00039546,4]
[321048830,1711823446826,-500.0,0.00039546,4]
[321048832,1711823446835,-500.0,0.00039546,4]
[321048836,1711823446845,-497.50003625,0.00039546,4]
[321048837,1711823446855,-500.0,0.00039546,4]
[321048838,1711823446865,-500.0,0.00039546,4]
[321048840,1711823446875,-151.36533451,0.00039546,4]
[321048842,1711823446885,-500.0,0.00039546,4]
[321048843,1711823446894,-500.0,0.00039546,4]
[321048844,1711823446903,-500.0,0.00039546,4]
[321048845,1711823446912,-500.0,0.00039546,4]
[321048846,1711823446923,-500.0,0.00039546,4]
[321048847,1711823446993,-500.0,0.00039546,4]
[321048848,1711823447003,-500.0,0.00039546,4]
[321048849,1711823447013,-500.0,0.00039546,4]
[321048850,1711823447022,-500.0,0.00039546,4]
[321048851,1711823447031,-500.0,0.00039546,4]
[321048852,1711823447040,-500.0,0.00039546,4]
[321048853,1711823447049,-500.0,0.00039546,4]
[321048854,1711823447059,-500.0,0.00039546,4]
[321048855,1711823447067,-500.0,0.00039546,4]
[321048856,1711823447077,-504.09386284,0.00039546,4]
[321048857,1711823447086,-500.0,0.00039546,4]
[321048858,1711823447096,-202.1506933,0.000396,2]
[321048859,1711823447107,-202.1506933,0.000396,2]
[321048860,1711823447118,-153.0,0.000396,2]
[321048861,1711823447128,-153.0,0.000396,2]
[321048862,1711823447138,-202.1506933,0.000396,2]
[321048863,1711823447147,-201.852528,0.000396,2]
[321048864,1711823447157,-153.0,0.000396,2]
[321048865,1711823447167,-153.0,0.000396,2]
[321048866,1711823447178,-3022.73331889,0.00039718,2]
[321048867,1711823447188,-152.56600563,0.00039796,4]
[321048868,1711823447198,-270.88498109,0.00039797,4]
[321048869,1711823447207,-155.17995526,0.00039797,4]
[321048870,1711823447216,-842.2388313,0.00039797,4]
[321048871,1711823447226,-598.87932927,0.00039797,2]
[321048872,1711823447235,-228.58068642,0.00039797,4]
[321048873,1711823447244,-155.78736119,0.00039797,4]
[321048874,1711823447253,-155.80068588,0.00039797,4]
[321048875,1711823447264,-154.98450155,0.00039797,4]
[321048876,1711823447274,-368.72154131,0.00039797,4]
[321048877,1711823447284,-172.77252291,0.00039797,4]
[321048878,1711823447293,-154.93802479,0.00039797,4]
[321048879,1711823447302,-284.52370631,0.00039798,4]
[321048880,1711823447311,-155.43798253,0.00039798,2]
[321048881,1711823447320,-155.65610708,0.00039798,4]
[321048882,1711823447332,-315.7042279,0.00039798,4]
[321048883,1711823447341,-363.92827338,0.00039798,4]
[321048884,1711823447351,-155.99996299,0.00039798,4]
[321048885,1711823447360,-2484.15,0.00039817,4]
[321048886,1711823447370,-603.41,0.00039817,4]
[321048887,1711823447379,-1759.25,0.00039817,4]
[321048888,1711823447388,-500.0,0.00039817,4]
[321048889,1711823447398,-1782.81,0.00039817,4]
[321048890,1711823447407,-874.95,0.00039817,4]
[321048891,1711823447417,-1582.14,0.00039817,4]
[321048892,1711823447426,-1615.05,0.00039817,4]
[321048893,1711823447435,-2079.36,0.00039817,4]
[321048894,1711823447444,-9350.42,0.00039817,4]
[321048895,1711823447454,-3494.56,0.00039817,4]
[321048896,1711823447464,-1408.72,0.00039817,4]
[321048897,1711823447473,-184.04,0.00039817,2]
[321048898,1711823447482,-500.0,0.00039818,4]
[321048899,1711823447491,-285.98043749,0.00039818,4]
[321048900,1711823447500,-500.0,0.00039818,4]
[321048901,1711823447510,-500.0,0.00039818,4]
[321048902,1711823447520,-500.0,0.00039818,4]
[321048903,1711823447529,-821.25,0.00039818,4]
[321048904,1711823447539,-500.0,0.00039818,4]
[321048905,1711823447548,-564.88,0.00039818,4]
[321048906,1711823447557,-500.0,0.00039818,4]
[321048907,1711823447567,-556.26,0.00039818,4]
[321048908,1711823447576,-151.0,0.00039818,4]
[321048909,1711823447586,-500.0,0.00039818,4]
[321048910,1711823447595,-500.0,0.00039818,4]
[321048911,1711823447604,-500.0,0.00039818,4]
[321048912,1711823447614,-500.0,0.00039818,4]
[321048913,1711823447623,-500.0,0.00039818,4]
[321048914,1711823447632,-500.0,0.00039818,4]
[321048915,1711823447641,-500.0,0.00039818,4]
[321048916,1711823447650,-500.0,0.00039818,4]
[321048917,1711823447660,-655.18,0.00039818,4]
[321048918,1711823447670,-500.0,0.00039818,4]
[321048919,1711823447679,-500.0,0.00039818,4]
[321048920,1711823447688,-554.31,0.00039818,4]
[321048921,1711823447698,-500.0,0.00039818,4]
[321048922,1711823447708,-500.0,0.00039818,4]
[321048923,1711823447717,-500.0,0.00039818,4]
[321048924,1711823447726,-500.0,0.00039818,4]
[321048925,1711823447735,-500.0,0.00039818,4]
[321048926,1711823447745,-500.0,0.00039818,4]
[321048927,1711823447754,-539.4,0.00039818,4]
[321048928,1711823447763,-500.0,0.00039818,4]
[321048929,1711823447773,-500.0,0.00039818,4]
[321048930,1711823447783,-500.0,0.00039818,4]
[321048931,1711823447792,-500.2,0.00039818,4]
[321048932,1711823447802,-500.0,0.00039818,4]
[321048933,1711823447812,-708.02,0.00039818,4]
[321048934,1711823447822,-500.0,0.00039818,4]
[321048935,1711823447832,-500.0,0.00039818,4]
[321048936,1711823447841,-500.0,0.00039818,4]
[321048937,1711823447850,-500.0,0.00039818,4]
[321048938,1711823447859,-500.0,0.00039818,4]
[321048939,1711823447869,-500.0,0.00039818,4]
[321048940,1711823447878,-635.36,0.00039818,4]
[321048941,1711823447888,-500.0,0.00039818,4]
[321048942,1711823447897,-500.0,0.00039818,4]
[321048943,1711823447906,-500.0,0.00039818,4]
[321048944,1711823447915,-2523.52,0.00039818,4]
[321048945,1711823447926,-500.0,0.00039818,4]
[321048946,1711823447935,-500.0,0.00039818,4]
[321048947,1711823447945,-500.0,0.00039818,4]
[321048948,1711823447966,-500.0,0.00039818,4]
[321048949,1711823447976,-500.0,0.00039818,4]
[321048950,1711823447986,-500.0,0.00039818,4]
[321048951,1711823447996,-500.0,0.00039818,4]
[321048952,1711823448006,-500.0,0.00039818,4]
[321048953,1711823448016,-500.0,0.00039818,4]
[321048954,1711823448025,-500.0,0.00039818,4]
[321048955,1711823448035,-501.11916942,0.00039818,4]
[321048956,1711823448044,-500.0,0.00039818,4]
[321048957,1711823448054,-515.93,0.00039818,4]
[321048958,1711823448064,-500.0,0.00039818,4]
[321048959,1711823448161,-876.09,0.00039818,4]
[321048960,1711823448177,-1923.69,0.00039818,2]
[321048961,1711823448186,-500.0,0.00039818,4]
[321048962,1711823448195,-2136.15,0.00039818,4]
[321048963,1711823448204,-500.0,0.00039818,4]
[321048964,1711823448214,-500.0,0.00039818,4]
[321048965,1711823448223,-500.0,0.00039818,4]
[321048966,1711823448232,-500.0,0.00039818,4]
[321048967,1711823448241,-500.0,0.00039818,4]
[321048968,1711823448250,-500.0,0.00039818,4]
[321048969,1711823448259,-4232.65,0.00039818,4]
[321048970,1711823448269,-500.0,0.00039818,4]
[321048971,1711823448278,-500.0,0.00039818,4]
[321048972,1711823448288,-500.0,0.00039818,4]
[321048973,1711823448297,-500.0,0.00039818,4]
[321048974,1711823448306,-500.0,0.00039818,4]
[321048975,1711823448316,-374.02070717,0.00039818,4]
[321048976,1711823448325,-1109.77,0.00039818,4]
[321048977,1711823448335,-500.0,0.00039818,4]
[321048978,1711823448344,-500.0,0.00039818,4]
[321048979,1711823448354,-7923.61,0.00039818,4]
[321048980,1711823448363,-162.93096422,0.00039818,4]
[321048981,1711823448374,-500.0,0.00039818,4]
[321048982,1711823448383,-721.65,0.00039818,4]
[321048983,1711823448393,-500.0,0.00039818,4]
[321048984,1711823448403,-2364.08,0.00039818,4]
[321048985,1711823448412,-500.0,0.00039818,4]
[321048986,1711823448423,-782.22,0.00039818,4]
[321048987,1711823448432,-500.0,0.00039818,4]
[321048988,1711823448441,-500.0,0.00039818,4]
[321048989,1711823448451,-2444.09,0.00039818,4]
[321048990,1711823448460,-500.0,0.00039818,4]
[321048991,1711823448471,-500.0,0.00039818,4]
[321048992,1711823448480,-879.99,0.00039818,4]
[321048993,1711823448490,-500.0,0.00039818,4]
[321048994,1711823448499,-500.0,0.00039818,4]
[321048995,1711823448508,-500.0,0.00039818,4]
[321048996,1711823448518,-500.0,0.00039818,4]
[321048997,1711823448528,-500.0,0.00039818,4]
[321048998,1711823448537,-4026.92,0.00039818,4]
[321048999,1711823448546,-500.0,0.00039818,4]
[321049000,1711823448555,-29387.0,0.00039818,4]
[321049001,1711823448565,-721.06,0.00039818,4]
[321049002,1711823448574,-500.0,0.00039818,4]
[321049003,1711823448583,-500.0,0.00039818,4]
[321049004,1711823448592,-500.0,0.00039818,4]
[321049005,1711823448603,-7298.15,0.00039818,4]
[321049006,1711823448612,-500.0,0.00039818,4]
[321049007,1711823448622,-500.0,0.00039818,4]
[321049008,1711823448633,-500.0,0.00039818,4]
[321049009,1711823448642,-500.0,0.00039818,4]
[321049010,1711823448652,-500.0,0.00039818,4]
[321049011,1711823448662,-500.0,0.00039818,4]
[321049012,1711823448673,-500.0,0.00039818,4]
[321049013,1711823448683,-1136.14,0.00039818,4]
[321049014,1711823448693,-1325.62,0.00039818,4]
[321049015,1711823448702,-171.14305027,0.00039818,4]
[321049016,1711823448711,-500.0,0.00039818,4]
[321049017,1711823448721,-500.0,0.00039818,4]
[321049018,1711823448730,-500.0,0.00039818,4]
[321049019,1711823448739,-500.0,0.00039818,4]
[321049020,1711823448748,-500.0,0.00039818,4]
[321049021,1711823448757,-500.0,0.00039818,4]
[321049022,1711823448767,-500.0,0.00039818,4]
[321049023,1711823448777,-176.4672361,0.00039818,4]
[321049024,1711823448786,-500.0,0.00039818,4]
[321049025,1711823448796,-6289.49,0.00039818,4]
[321049026,1711823448805,-500.0,0.00039818,4]
[321049027,1711823448814,-500.0,0.00039818,4]
[321049028,1711823448823,-500.0,0.00039818,4]
[321049029,1711823448833,-500.0,0.00039818,4]
[321049030,1711823448843,-500.0,0.00039818,4]
[321049031,1711823448853,-500.0,0.00039818,4]
[321049032,1711823448862,-500.0,0.00039818,4]
[321049033,1711823448871,-500.0,0.00039818,4]
[321049034,1711823448881,-500.0,0.00039818,4]
[321049035,1711823448890,-2110.34,0.00039818,4]
[321049036,1711823448900,-239.25768702,0.00039818,30]
[321049037,1711823448909,-500.0,0.00039818,4]
[321049038,1711823448920,-500.0,0.00039818,4]
[321049039,1711823448930,-471.84201644,0.00039818,4]
[321049040,1711823448939,-578.01,0.00039818,4]
[321049041,1711823448949,-500.0,0.00039818,4]
[321049042,1711823448957,-500.0,0.00039818,4]
[321049043,1711823448966,-500.0,0.00039818,4]
[321049044,1711823448976,-502.05667969,0.00039818,4]
[321049045,1711823448985,-248.14934025,0.00039818,4]
[321049046,1711823448994,-500.0,0.00039818,4]
[321049047,1711823449004,-500.0,0.00039818,4]
[321049048,1711823449014,-2298.6,0.00039819,4]
[321049049,1711823449024,-500.0,0.00039819,4]
[321049050,1711823449034,-500.0,0.00039819,4]
[321049051,1711823449044,-500.0,0.00039819,4]
[321049052,1711823449053,-500.0,0.00039819,4]
[321049053,1711823449062,-500.0,0.00039819,4]
[321049054,1711823449071,-500.0,0.00039819,4]
[321049055,1711823449081,-500.0,0.00039819,4]
[321049056,1711823449090,-500.0,0.00039819,4]
[321049057,1711823449103,-455.80372358,0.00039819,4]
[321049058,1711823449112,-500.0,0.00039819,4]
[321049059,1711823449122,-565.06,0.00039819,4]
[321049060,1711823449132,-500.0,0.00039819,4]
[321049061,1711823449143,-500.0,0.00039819,4]
[321049062,1711823449152,-1224.28,0.00039819,7]
[321049063,1711823449215,-1636.41,0.00039819,4]
[321049064,1711823449224,-712.7,0.00039819,4]
[321049065,1711823449233,-1062.32,0.00039819,4]
[321049066,1711823449242,-1073.8,0.00039819,4]
[321049067,1711823449251,-531.85324876,0.00039819,4]
[321049068,1711823449261,-500.0,0.00039819,4]
[321049069,1711823449270,-500.0,0.00039819,4]
[321049070,1711823449279,-500.0,0.00039819,4]
[321049071,1711823449288,-500.0,0.00039819,4]
[321049072,1711823449297,-352.75652102,0.00039819,4]
[321049073,1711823449307,-500.0,0.00039819,4]
[321049074,1711823449316,-564.08,0.00039819,4]
[321049075,1711823449326,-503.24664851,0.00039819,4]
[321049076,1711823449336,-38224.22,0.00039819,4]
[321049077,1711823449345,-500.0,0.00039819,4]
[321049078,1711823449354,-541.32,0.00039819,4]
[321049079,1711823449363,-500.0,0.00039819,4]
[321049080,1711823449373,-753.21,0.00039819,4]
[321049081,1711823449382,-500.0,0.00039819,4]
[321049082,1711823449392,-500.0,0.0003982,4]
[321049083,1711823449401,-500.0,0.0003982,4]
[321049084,1711823449411,-500.0,0.0003982,4]
[321049085,1711823449421,-500.0,0.0003982,4]
[321049086,1711823449431,-541.59,0.0003982,4]
[321049087,1711823449440,-500.0,0.0003982,4]
[321049088,1711823449450,-609.52209442,0.0003982,4]
[321049089,1711823449459,-500.0,0.0003982,4]
[321049090,1711823449468,-500.0,0.0003982,4]
[321049091,1711823449478,-500.0,0.0003982,4]
[321049092,1711823449487,-500.0,0.0003982,4]